bitfinex/quotes_SOLUSD_20241220
["timestamp","ask_amount","ask_price","bid_price","bid_amount"]
[1734660566808,37.02495398,195.32,195.27,1.82240456]
[1734660566974,37.02495398,195.3,195.27,1.82240456]
[1734660567305,57.02495398,195.28,195.2,37.02495398]
[1734660567482,37.02495398,195.27,195.2,37.02495398]
[1734660568617,20.0,195.24,195.18,37.02495398]
[1734660568774,37.02495398,195.22,195.15,37.02495398]
[1734660568977,37.02495398,195.21,195.14,38.64655398]
[1734660569419,37.02495398,195.19,195.12,37.02495398]
[1734660569576,37.02495398,195.18,195.1,37.02495398]
[1734660569875,37.02495398,195.18,195.08,4.98035625]
[1734660569876,37.02495398,195.16,195.09,37.02495398]
[1734660570075,37.02495398,195.16,195.07,1.5004]
[1734660570076,20.0,195.15,195.12,37.02495398]
[1734660570307,20.0,195.19,195.14,37.02495398]
[1734660570475,20.0,195.21,195.17,37.02495398]
[1734660570799,20.0,195.21,195.16,37.02495398]
[1734660571188,20.0,195.22,195.18,37.02495398]
[1734660571699,20.0,195.22,195.17,37.02495398]
[1734660571901,20.0,195.21,195.17,37.02495398]
[1734660572404,20.0,195.21,195.18,4.36136426]
[1734660572709,37.02495398,195.2,195.18,4.36136426]
[1734660573098,37.02495398,195.2,195.12,37.02495398]
[1734660573300,57.02495398,195.21,195.13,37.02495398]
[1734660573606,20.0,195.2,195.14,4.36652932]
[1734660573802,23.776884,195.23,195.14,4.36652932]
[1734660573803,37.02495398,195.19,195.14,4.36652932]
[1734660574187,20.0,195.19,195.14,4.36652932]
[1734660574506,20.0,195.19,195.16,37.02495398]
[1734660574677,20.0,195.19,195.15,37.02495398]
[1734660574874,20.0,195.19,195.17,4.36316309]
[1734660575489,20.0,195.19,195.15,37.02495398]
[1734660575994,20.0,195.19,195.14,37.02495398]
[1734660576209,37.02495398,195.21,195.14,37.02495398]
[1734660576522,37.02495398,195.24,195.15,48.68673987]
[1734660576708,37.02495398,195.26,195.18,37.02495398]
[1734660577215,37.02495398,195.27,195.19,37.02495398]
[1734660577404,12.8012,195.3,195.2,37.02495398]
[1734660577607,37.02495398,195.33,195.25,37.02495398]
[1734660577812,6.1526,195.34,195.27,37.02495398]
[1734660577987,37.02495398,195.36,195.29,37.02495398]
[1734660579414,37.02495398,195.34,195.26,37.02495398]
[1734660579824,37.02495398,195.34,195.27,37.02495398]
[1734660580120,37.02495398,195.34,195.26,37.02495398]
[1734660580278,20.0,195.29,195.25,37.02495398]
[1734660580482,20.0,195.28,195.27,6.20936657]
[1734660580903,20.0,195.32,195.27,41.39992484]
[1734660581317,20.0,195.3,195.28,9.84310095]
[1734660581482,57.02495398,195.32,195.28,9.84310095]
[1734660581882,20.0,195.32,195.29,4.37497086]
[1734660582101,20.0,195.3,195.29,4.37497086]
[1734660582614,20.0,195.31,195.27,37.02495398]
[1734660583033,20.0,195.31,195.28,37.02495398]
[1734660583206,20.0,195.33,195.28,44.78068762]
[1734660583408,37.02495398,195.38,195.3,37.02495398]
[1734660583720,37.02495398,195.38,195.31,40.49113169]
[1734660584039,37.02495398,195.4,195.32,37.02495398]
[1734660584199,37.02495398,195.41,195.35,37.02495398]
[1734660584401,37.02495398,195.45,195.37,37.02495398]
[1734660584710,37.02495398,195.45,195.38,37.02495398]
[1734660584922,37.02495398,195.48,195.4,37.02495398]
[1734660585133,37.02495398,195.48,195.41,37.02495398]
[1734660585417,37.02495398,195.48,195.4,37.02495398]
[1734660585619,37.02495398,195.44,195.37,5.02021328]
[1734660585823,37.02495398,195.44,195.37,42.04516726]
[1734660586043,37.02495398,195.48,195.41,37.02495398]
[1734660586234,6.2316,195.56,195.45,37.02495398]
[1734660586399,37.02495398,195.54,195.42,0.76739011]
[1734660586800,37.02495398,195.54,195.43,8.46282994]
[1734660587037,37.02495398,195.54,195.47,37.02495398]
[1734660587530,37.02495398,195.55,195.48,37.02495398]
[1734660588237,20.0,195.52,195.48,37.02495398]
[1734660588940,20.0,195.52,195.49,37.02495398]
[1734660589139,37.02495398,195.56,195.49,37.02495398]
[1734660589344,37.02495398,195.58,195.51,37.02495398]
[1734660589504,37.02495398,195.57,195.5,37.02495398]
[1734660589919,6.9955908,195.61,195.49,37.02495398]
[1734660589920,37.02495398,195.56,195.49,37.02495398]
[1734660590318,37.02495398,195.57,195.5,37.02495398]
[1734660590518,37.02495398,195.57,195.5,38.86262649]
[1734660591036,37.67324478,195.61,195.54,37.02495398]
[1734660591415,37.67324478,195.61,195.53,37.02495398]
[1734660591614,37.67324478,195.61,195.54,37.02495398]
[1734660591821,0.6482908,195.61,195.56,37.02495398]
[1734660592847,0.6482908,195.61,195.57,1.83767251]
[1734660593220,0.6482908,195.61,195.58,1.83767251]
[1734660593622,37.02495398,195.59,195.58,1.83767251]
[1734660593821,67.11743798,195.59,195.58,7.251e-05]
[1734660594134,23.776884,195.58,195.53,5.02021328]
[1734660594343,23.776884,195.54,195.52,1.328e-05]
[1734660594523,23.776884,195.5,195.43,3.66478278]
[1734660594722,20.0,195.47,195.43,3.66478278]
[1734660595031,20.0,195.47,195.4,3.05512107]
[1734660595550,57.02495398,195.43,195.35,37.02495398]
[1734660596012,57.02495398,195.43,195.33,4.61478836]
[1734660596013,37.02495398,195.46,195.38,37.02495398]
[1734660596213,37.02495398,195.46,195.33,5.38247503]
[1734660596214,37.02495398,195.43,195.35,37.02495398]
[1734660596441,23.776884,195.5,195.33,5.38247503]
[1734660596442,37.02495398,195.44,195.37,37.02495398]
[1734660596848,37.02495398,195.45,195.37,37.02495398]
[1734660597019,37.02495398,195.44,195.37,37.02495398]
[1734660597228,37.02495398,195.45,195.38,37.02495398]
[1734660597539,37.02495398,195.47,195.4,37.02495398]
[1734660597738,37.02495398,195.5,195.42,37.02495398]
[1734660597945,37.02495398,195.5,195.43,37.02495398]
[1734660598128,37.02495398,195.5,195.42,37.02495398]
[1734660598329,37.02495398,195.47,195.39,37.02495398]
[1734660598844,37.02495398,195.47,195.4,37.02495398]
[1734660599232,37.02495398,195.47,195.39,37.02495398]
[1734660599421,37.02495398,195.43,195.36,37.02495398]
[1734660599824,37.02495398,195.44,195.37,37.02495398]
[1734660600540,37.02495398,195.44,195.36,37.02495398]
[1734660600737,37.02495398,195.38,195.31,37.02495398]
[1734660600927,37.02495398,195.4,195.33,37.02495398]
[1734660601127,37.02495398,195.43,195.35,37.02495398]
[1734660601339,37.02495398,195.44,195.37,37.02495398]
[1734660601549,20.0,195.44,195.38,37.02495398]
[1734660602049,20.0,195.42,195.37,37.02495398]
[1734660602221,37.02495398,195.43,195.36,37.02495398]
[1734660602644,37.02495398,195.48,195.4,37.02495398]
[1734660603344,37.02495398,195.49,195.41,37.02495398]
[1734660603529,43.53525398,195.51,195.43,37.02495398]
[1734660603729,37.02495398,195.53,195.45,37.02495398]
[1734660603945,37.02495398,195.51,195.44,37.02495398]
[1734660604139,37.02495398,195.53,195.45,37.02495398]
[1734660604335,37.02495398,195.51,195.43,37.02495398]
[1734660605852,20.0,195.48,195.41,37.02495398]
[1734660606053,37.02495398,195.45,195.37,38.53635398]
[1734660606235,37.02495398,195.45,195.33,6.2311]
[1734660606236,37.02495398,195.43,195.35,37.02495398]
[1734660606641,37.02495398,195.45,195.37,37.02495398]
[1734660606966,20.0,195.42,195.37,37.02495398]
[1734660607141,37.02495398,195.45,195.37,37.02495398]
[1734660609047,37.02495398,195.47,195.39,37.02495398]
[1734660609255,37.02495398,195.45,195.37,37.02495398]
[1734660610671,37.02495398,195.38,195.28,37.02495398]
[1734660610973,37.02495398,195.35,195.26,38.67255398]
[1734660611136,37.02495398,195.38,195.31,37.02495398]
[1734660611465,37.02495398,195.38,195.26,1.6476]
[1734660611466,37.02495398,195.43,195.36,37.02495398]
[1734660611649,1.6181,195.48,195.41,37.02495398]
[1734660611650,37.02495398,195.48,195.41,37.02495398]
[1734660611954,37.02495398,195.5,195.42,37.02495398]
[1734660612262,37.02495398,195.5,195.43,37.02495398]
[1734660612440,27.33402592,195.55,195.45,37.02495398]
[1734660612441,37.02495398,195.52,195.45,37.02495398]
[1734660612646,37.02495398,195.49,195.42,37.02495398]
[1734660613035,37.02495398,195.5,195.42,37.02495398]
[1734660613359,37.02495398,195.46,195.39,37.02495398]
[1734660613666,37.02495398,195.47,195.4,37.02495398]
[1734660614046,37.02495398,195.46,195.38,38.62345398]
[1734660614250,37.02495398,195.47,195.39,37.02495398]
[1734660614838,37.02495398,195.52,195.45,37.02495398]
[1734660615150,37.02495398,195.56,195.48,37.02495398]
[1734660615344,37.02495398,195.58,195.5,37.02495398]
[1734660616251,43.63375398,195.6,195.52,37.02495398]
[1734660616560,37.02495398,195.63,195.55,37.02495398]
[1734660616952,37.02495398,195.64,195.57,37.02495398]
[1734660617145,37.02495398,195.64,195.56,37.02495398]
[1734660617460,37.02495398,195.6,195.53,37.02495398]
[1734660617664,37.67324478,195.61,195.54,37.02495398]
[1734660618059,37.02495398,195.6,195.52,37.02495398]
[1734660618249,37.02495398,195.6,195.53,37.02495398]
[1734660618450,37.02495398,195.6,195.52,37.02495398]
[1734660618771,37.02495398,195.6,195.53,37.02495398]
[1734660619067,0.6482908,195.61,195.54,37.02495398]
[1734660620056,0.6482908,195.61,195.55,37.02495398]
[1734660620363,0.6482908,195.61,195.54,37.02495398]
[1734660621061,37.02495398,195.58,195.51,37.02495398]
[1734660621247,37.02495398,195.6,195.53,37.02495398]
[1734660622457,37.67324478,195.61,195.53,37.02495398]
[1734660622759,37.02495398,195.58,195.51,37.02495398]
[1734660623066,37.02495398,195.57,195.49,38.66785398]
[1734660623259,0.6482908,195.61,195.55,37.02495398]
[1734660623457,0.6482908,195.61,195.49,1.6429]
[1734660623458,0.6482908,195.61,195.58,37.02495398]
[1734660623847,0.6482908,195.61,195.57,37.02495398]
[1734660624165,0.6482908,195.61,195.55,37.02495398]
[1734660624666,0.6482908,195.61,195.52,0.7669361]
[1734660624667,0.6482908,195.61,195.57,37.02495398]
[1734660624870,0.6482908,195.61,195.55,37.02495398]
[1734660625449,37.02495398,195.6,195.53,37.02495398]
[1734660625657,37.02495398,195.6,195.52,37.02495398]
[1734660625965,0.6482908,195.61,195.56,37.02495398]
[1734660626263,0.6482908,195.61,195.57,37.02495398]
[1734660626560,0.6482908,195.61,195.54,37.02495398]
[1734660626772,0.6482908,195.61,195.53,37.02495398]
[1734660626773,37.02495398,195.6,195.53,37.02495398]
[1734660627068,37.02495398,195.59,195.51,37.02495398]
[1734660627264,37.02495398,195.56,195.49,38.66785398]
[1734660627475,12.7811,195.6,195.49,1.6429]
[1734660627476,37.02495398,195.55,195.49,1.6429]
[1734660628652,37.02495398,195.57,195.5,37.02495398]
[1734660629375,37.02495398,195.58,195.51,37.02495398]
[1734660629544,57.02495398,195.57,195.5,37.02495398]
[1734660629745,37.02495398,195.56,195.49,38.66785398]
[1734660629945,57.02495398,195.57,195.49,38.66785398]
[1734660630869,57.02495398,195.57,195.5,37.02495398]
[1734660631257,37.02495398,195.59,195.51,37.02495398]
[1734660631451,37.67324478,195.61,195.53,37.02495398]
[1734660631659,0.6482908,195.61,195.57,37.02495398]
[1734660631857,0.6482908,195.61,195.56,37.02495398]
[1734660632064,0.6482908,195.61,195.55,37.02495398]
[1734660632268,0.6482908,195.61,195.49,2.40990664]
[1734660632269,0.6482908,195.61,195.54,37.02495398]
[1734660632667,0.6482908,195.61,195.55,37.02495398]
[1734660632862,0.6482908,195.61,195.49,2.40990664]
[1734660632863,0.6482908,195.61,195.56,37.02495398]
[1734660633065,0.6482908,195.61,195.55,37.02495398]
[1734660633267,0.6482908,195.61,195.56,37.02495398]
[1734660634165,0.6482908,195.61,195.55,37.02495398]
[1734660634755,0.6482908,195.61,195.49,2.40990664]
[1734660634756,37.67324478,195.61,195.53,37.02495398]
[1734660634957,37.02495398,195.57,195.5,37.02495398]
[1734660635560,0.6482908,195.61,195.51,37.02495398]
[1734660635561,37.02495398,195.58,195.51,37.02495398]
[1734660635970,37.02495398,195.57,195.5,37.02495398]
[1734660636162,37.02495398,195.58,195.5,37.02495398]
[1734660636564,37.02495398,195.59,195.51,37.02495398]
[1734660636877,37.02495398,195.6,195.52,37.02495398]
[1734660637263,0.6482908,195.61,195.54,37.02495398]
[1734660638061,37.67324478,195.61,195.54,37.02495398]
[1734660638762,37.67324478,195.61,195.5,37.02495398]
[1734660638763,37.02495398,195.58,195.5,37.02495398]
[1734660638964,37.02495398,195.58,195.51,37.02495398]
[1734660641050,0.6482908,195.61,195.53,0.12549]
[1734660641250,0.6482908,195.61,195.59,22.62062809]
[1734660641500,0.6482908,195.61,195.6,0.76660474]
[1734660641775,0.6482908,195.61,195.6,2.31050474]
[1734660642451,0.6482908,195.61,195.6,1.5439]
[1734660643782,28.62818425,195.79,195.6,1.5439]
[1734660643783,0.6482908,195.8,195.64,20.0]
[1734660643971,0.6482908,195.8,195.73,22.62062809]
[1734660645288,0.6482908,195.8,195.65,24.54309313]
[1734660645289,22.62062809,195.76,195.69,22.62062809]
[1734660645865,22.62062809,195.78,195.69,22.62062809]
[1734660646569,22.62062809,195.74,195.61,0.76638904]
[1734660646780,22.62062809,195.7,195.63,22.62062809]
[1734660646986,36.72453422,195.69,195.61,36.72453422]
[1734660649200,43.34533422,195.71,195.63,36.72453422]
[1734660649675,6.6208,195.71,195.64,36.72453422]
[1734660649870,6.6208,195.71,195.6,1.5439]
[1734660650184,36.72453422,195.75,195.67,36.72453422]
[1734660650406,43.28933422,195.76,195.68,36.72453422]
[1734660650989,6.5648,195.76,195.69,36.72453422]
[1734660651219,36.72453422,195.77,195.7,36.72453422]
[1734660651724,37.37282502,195.8,195.73,36.72453422]
[1734660652109,0.6482908,195.8,195.74,36.72453422]
[1734660653988,37.37282502,195.8,195.73,36.72453422]
[1734660654589,36.72453422,195.78,195.71,36.72453422]
[1734660654791,12.7687,195.79,195.7,36.72453422]
[1734660654792,36.72453422,195.77,195.7,36.72453422]
[1734660655005,36.72453422,195.72,195.65,36.72453422]
[1734660655329,36.72453422,195.71,195.64,38.38623422]
[1734660656003,36.72453422,195.72,195.65,36.72453422]
[1734660656884,36.72453422,195.71,195.64,38.38623422]
[1734660657310,36.72453422,195.71,195.63,36.72453422]
[1734660657480,23.776884,195.77,195.7,36.72453422]
[1734660657681,12.7694,195.78,195.72,36.72453422]
[1734660658014,36.72453422,195.77,195.69,36.72453422]
[1734660658589,36.72453422,195.76,195.69,36.72453422]
[1734660659316,36.72453422,195.76,195.61,6.1525]
[1734660659317,36.72453422,195.74,195.67,36.72453422]
[1734660659806,36.72453422,195.77,195.7,36.72453422]
[1734660660380,36.72453422,195.77,195.69,36.72453422]
[1734660660781,36.72453422,195.73,195.65,36.72453422]
[1734660661188,36.72453422,195.73,195.66,36.72453422]
[1734660661392,36.72453422,195.75,195.67,36.72453422]
[1734660662020,36.72453422,195.78,195.7,36.72453422]
[1734660662189,13.4168908,195.8,195.73,36.72453422]
[1734660662815,0.6482908,195.8,195.74,36.72453422]
[1734660666317,36.72453422,195.79,195.71,36.72453422]
[1734660666551,36.72453422,195.78,195.71,36.72453422]
[1734660666993,36.72453422,195.78,195.7,36.72453422]
[1734660667193,36.72453422,195.76,195.69,36.72453422]
[1734660667489,36.72453422,195.77,195.7,36.72453422]
[1734660668320,36.72453422,195.77,195.66,3.87786689]
[1734660668321,12.7707,195.76,195.69,36.72453422]
[1734660668526,36.72453422,195.75,195.68,36.72453422]
[1734660669017,22.58657306,195.73,195.65,22.58657306]
[1734660669321,22.58657306,195.73,195.63,22.58657306]
[1734660669322,22.58657306,195.7,195.63,22.58657306]
[1734660669502,6.4463,195.73,195.66,22.58657306]
[1734660669503,22.58657306,195.73,195.66,22.58657306]
[1734660669997,22.58657306,195.73,195.65,22.58657306]
[1734660670197,22.58657306,195.72,195.65,22.58657306]
[1734660670417,20.0,195.73,195.66,22.58657306]
[1734660670718,22.58657306,195.74,195.66,22.58657306]
[1734660670921,22.58657306,195.73,195.65,22.58657306]
[1734660671290,12.7707,195.76,195.61,22.58657306]
[1734660671291,22.58657306,195.69,195.61,22.58657306]
[1734660672019,22.58657306,195.7,195.62,22.58657306]
[1734660672314,22.58657306,195.68,195.6,22.58657306]
[1734660672497,22.58657306,195.68,195.52,12.7858]
[1734660672498,22.58657306,195.61,195.53,0.76677392]
[1734660672702,22.58657306,195.6,195.53,22.58657306]
[1734660672919,22.58657306,195.59,195.52,22.58657306]
[1734660673119,22.58657306,195.64,195.55,22.58657306]
[1734660673325,22.58657306,195.65,195.58,22.58657306]
[1734660673527,22.58657306,195.68,195.6,22.58657306]
[1734660673729,22.58657306,195.67,195.6,22.58657306]
[1734660674027,22.58657306,195.66,195.58,22.58657306]
[1734660674423,22.58657306,195.66,195.59,22.58657306]
[1734660674621,22.58657306,195.67,195.59,22.58657306]
[1734660674838,22.58657306,195.65,195.57,22.58657306]
[1734660675044,22.58657306,195.63,195.56,22.58657306]
[1734660675444,22.58657306,195.63,195.55,22.58657306]
[1734660675640,22.58657306,195.61,195.54,22.58657306]
[1734660675946,22.58657306,195.59,195.51,24.13687306]
[1734660676118,22.58657306,195.57,195.51,1.5503]
[1734660676450,22.58657306,195.57,195.5,22.58657306]
[1734660676947,22.58657306,195.58,195.51,22.58657306]
[1734660677149,22.58657306,195.57,195.5,22.58657306]
[1734660677450,22.58657306,195.59,195.51,22.58657306]
[1734660677817,22.58657306,195.58,195.51,22.58657306]
[1734660678146,22.58657306,195.57,195.49,22.58657306]
[1734660678445,22.58657306,195.58,195.5,22.58657306]
[1734660678836,22.58657306,195.59,195.52,22.58657306]
[1734660679239,22.58657306,195.59,195.51,22.58657306]
[1734660681147,22.58657306,195.55,195.47,22.58657306]
[1734660681348,22.58657306,195.56,195.48,22.58657306]
[1734660683442,22.58657306,195.51,195.45,1.6456]
[1734660683642,22.58657306,195.51,195.44,22.58657306]
[1734660683643,22.58657306,195.49,195.42,22.58657306]
[1734660683824,22.58657306,195.54,195.46,22.58657306]
[1734660684025,22.58657306,195.55,195.47,22.58657306]
[1734660684229,22.58657306,195.57,195.5,22.58657306]
[1734660684532,22.58657306,195.58,195.5,22.58657306]
[1734660684743,22.58657306,195.57,195.49,22.58657306]
[1734660685146,22.58657306,195.57,195.5,22.58657306]
[1734660685644,22.58657306,195.57,195.49,22.58657306]
[1734660685850,22.58657306,195.55,195.48,22.58657306]
[1734660686237,22.58657306,195.55,195.47,22.58657306]
[1734660686750,22.58657306,195.55,195.45,22.58657306]
[1734660686751,22.58657306,195.52,195.45,22.58657306]
[1734660686947,22.58657306,195.5,195.43,22.58657306]
[1734660687130,22.58657306,195.47,195.4,24.23397306]
[1734660687325,22.58657306,195.47,195.4,1.6474]
[1734660687534,22.58657306,195.47,195.4,24.23397306]
[1734660687728,22.58657306,195.52,195.44,22.58657306]
[1734660687945,22.58657306,195.54,195.46,22.58657306]
[1734660688152,22.58657306,195.55,195.48,22.58657306]
[1734660688350,22.58657306,195.55,195.47,22.58657306]
[1734660688847,22.58657306,195.54,195.47,22.58657306]
[1734660689054,22.58657306,195.53,195.45,22.58657306]
[1734660690448,22.58657306,195.52,195.45,22.58657306]
[1734660690652,22.58657306,195.51,195.44,22.58657306]
[1734660690850,22.58657306,195.5,195.42,22.58657306]
[1734660691151,22.58657306,195.5,195.43,22.58657306]
[1734660691354,22.58657306,195.51,195.44,22.58657306]
[1734660691597,42.58657306,195.54,195.46,22.58657306]
[1734660691930,22.58657306,195.55,195.47,22.58657306]
[1734660692127,22.58657306,195.56,195.49,22.58657306]
[1734660694541,22.58657306,195.56,195.48,22.58657306]
[1734660694954,22.58657306,195.55,195.48,22.58657306]
[1734660695155,22.58657306,195.54,195.47,22.58657306]
[1734660695357,22.58657306,195.52,195.45,22.58657306]
[1734660695771,22.58657306,195.53,195.46,22.58657306]
[1734660696767,22.58657306,195.52,195.45,22.58657306]
[1734660697070,22.58657306,195.51,195.43,22.58657306]
[1734660697247,22.58657306,195.5,195.43,22.58657306]
[1734660698052,22.58657306,195.5,195.42,22.58657306]
[1734660698257,22.58657306,195.48,195.4,24.23397306]
[1734660698450,22.58657306,195.47,195.4,24.23397306]
[1734660698765,22.58657306,195.49,195.41,22.58657306]
[1734660699082,22.58657306,195.49,195.42,22.58657306]
[1734660699453,38.3533,195.55,195.43,22.58657306]
[1734660699454,22.58657306,195.5,195.43,22.58657306]
[1734660699665,22.58657306,195.51,195.43,22.58657306]
[1734660699847,22.58657306,195.51,195.44,22.58657306]
[1734660701562,22.58657306,195.5,195.42,22.58657306]
[1734660701764,12.7864,195.52,195.4,2.41481795]
[1734660701765,22.58657306,195.46,195.4,1.6474]
[1734660702065,22.58657306,195.44,195.37,22.58657306]
[1734660702247,22.58657306,195.43,195.36,22.58657306]
[1734660703071,22.58657306,195.44,195.37,22.58657306]
[1734660703748,22.58657306,195.43,195.36,22.58657306]
[1734660703954,22.58657306,195.43,195.35,24.12877306]
[1734660704768,22.58657306,195.43,195.36,22.58657306]
[1734660705864,22.58657306,195.42,195.35,22.58657306]
[1734660706067,22.58657306,195.44,195.37,22.58657306]
[1734660706247,22.58657306,195.5,195.42,22.58657306]
[1734660706768,22.58657306,195.48,195.4,22.58657306]
[1734660707147,22.58657306,195.47,195.39,22.58657306]
[1734660707768,22.58657306,195.48,195.41,22.58657306]
[1734660708073,22.58657306,195.49,195.42,22.58657306]
[1734660708455,22.58657306,195.48,195.41,22.58657306]
[1734660709357,22.58657306,195.49,195.42,22.58657306]
[1734660709853,6.517,195.53,195.37,0.76740361]
[1734660709854,22.58657306,195.48,195.4,22.58657306]
[1734660711655,22.58657306,195.48,195.41,1.82517994]
[1734660712059,22.58657306,195.48,195.4,22.58657306]
[1734660713056,22.58657306,195.48,195.41,22.58657306]
[1734660714100,35.37487306,195.5,195.43,22.58657306]
[1734660714677,35.37487306,195.5,195.42,22.58657306]
[1734660714857,35.37487306,195.5,195.43,22.58657306]
[1734660715059,12.7883,195.5,195.43,22.58657306]
[1734660715354,22.58657306,195.54,195.47,22.58657306]
[1734660715784,22.58657306,195.55,195.48,22.58657306]
[1734660715961,22.58657306,195.54,195.46,22.58657306]
[1734660716354,22.58657306,195.54,195.47,22.58657306]
[1734660716764,22.58657306,195.53,195.45,22.58657306]
[1734660717985,22.58657306,195.53,195.46,1.8329498]
[1734660718385,22.58657306,195.53,195.47,1.8329498]
[1734660718687,22.58657306,195.54,195.47,24.41952286]
[1734660718981,22.58657306,195.55,195.48,1.8329498]
[1734660719172,22.58657306,195.56,195.48,24.41952286]
[1734660719563,22.58657306,195.56,195.49,1.8329498]
[1734660720085,22.58657306,195.56,195.48,22.58657306]
[1734660720789,22.58657306,195.56,195.49,22.58657306]
[1734660721083,14.14295831,195.56,195.48,14.14295831]
[1734660721283,12.7844,195.55,195.5,1.83598495]
[1734660721490,23.776884,195.54,195.5,1.83598495]
[1734660721977,23.776884,195.54,195.44,2.94164185]
[1734660722172,14.14295831,195.49,195.44,2.94164185]
[1734660722372,14.14295831,195.52,195.44,17.08460016]
[1734660722673,14.14295831,195.52,195.45,1.83984383]
[1734660722882,14.14295831,195.53,195.45,15.98280214]
[1734660723077,14.14295831,195.53,195.46,2.94613381]
[1734660723273,14.14295831,195.53,195.46,4.78597764]
[1734660723677,14.14295831,195.53,195.47,1.83984383]
[1734660723985,14.14295831,195.52,195.47,1.83984383]
[1734660724385,14.14295831,195.52,195.48,1.83984383]
[1734660724581,14.14295831,195.53,195.48,1.83984383]
[1734660724894,14.14295831,195.53,195.45,14.14295831]
[1734660725191,14.14295831,195.52,195.45,14.14295831]
[1734660725792,14.14295831,195.51,195.46,1.84478847]
[1734660726089,14.14295831,195.52,195.46,1.84478847]
[1734660726294,14.14295831,195.52,195.47,1.84478847]
[1734660726790,14.14295831,195.48,195.47,1.84478847]
[1734660726998,14.14295831,195.48,195.4,3.03150118]
[1734660727191,14.14295831,195.44,195.4,3.03150118]
[1734660727574,14.14295831,195.44,195.41,1.8475475]
[1734660728195,14.14295831,195.44,195.38,2.95723026]
[1734660728395,14.14295831,195.45,195.38,17.10018857]
[1734660728887,14.14295831,195.45,195.39,4.80369948]
[1734660729281,14.14295831,195.46,195.39,4.80369948]
[1734660729482,14.14295831,195.45,195.39,4.80369948]
[1734660729687,14.14295831,195.46,195.4,1.84646922]
[1734660729879,30.180384,195.51,195.4,1.84646922]
[1734660729880,30.180384,195.51,195.4,15.98942753]
[1734660730196,14.14295831,195.49,195.42,14.14295831]
[1734660730376,14.14295831,195.48,195.41,1.84646922]
[1734660730584,14.14295831,195.45,195.41,1.84646922]
[1734660730785,14.14295831,195.46,195.41,1.84646922]
[1734660730998,14.14295831,195.46,195.38,14.14295831]
[1734660731693,14.14295831,195.43,195.39,4.7990138]
[1734660731896,14.14295831,195.41,195.39,4.7990138]
[1734660732481,14.14295831,195.42,195.36,2.95336067]
[1734660732692,14.14295831,195.43,195.36,17.09631898]
[1734660732997,14.14295831,195.43,195.37,4.79857798]
[1734660733801,14.14295831,195.43,195.38,4.79857798]
[1734660733980,14.14295831,195.42,195.38,4.79857798]
[1734660734312,14.14295831,195.42,195.38,1.84521731]
[1734660734473,14.14295831,195.42,195.37,2.95336067]
[1734660735091,14.14295831,195.42,195.35,14.14295831]
[1734660735295,14.14295831,195.46,195.39,14.14295831]
[1734660735500,14.14295831,195.47,195.4,14.14295831]
[1734660735801,14.14295831,195.47,195.4,18.93941391]
[1734660735986,14.14295831,195.46,195.4,4.7964556]
[1734660736193,6.4035,195.51,195.41,14.14295831]
[1734660736376,6.4035,195.51,195.44,14.14295831]
[1734660736787,17.82839301,195.58,195.46,14.14295831]
[1734660736788,19.1639,195.56,195.46,14.14295831]
[1734660737101,14.14295831,195.53,195.46,14.14295831]
[1734660737480,14.14295831,195.52,195.45,15.98662308]
[1734660737683,14.14295831,195.52,195.45,14.14295831]
[1734660738282,14.14295831,195.52,195.46,1.84289861]
[1734660738577,14.14295831,195.51,195.46,1.84289861]
[1734660738792,14.14295831,195.51,195.43,14.14295831]
[1734660739291,14.14295831,195.52,195.45,14.14295831]
[1734660739901,14.14295831,195.51,195.44,18.93849116]
[1734660740401,14.14295831,195.51,195.44,14.14295831]
[1734660740607,14.14295831,195.51,195.43,14.14295831]
[1734660740814,14.14295831,195.52,195.45,18.94212832]
[1734660741475,14.14295831,195.52,195.45,15.98867152]
[1734660741680,19.1639,195.56,195.46,1.84571321]
[1734660741681,12.786,195.53,195.46,1.84571321]
[1734660741984,14.14295831,195.47,195.46,1.84571321]
[1734660742304,14.14295831,195.48,195.41,1.84571321]
[1734660742601,14.14295831,195.48,195.41,15.98867152]
[1734660742797,14.14295831,195.48,195.42,1.84571321]
[1734660743004,14.14295831,195.49,195.42,15.98867152]
[1734660743192,14.14295831,195.5,195.43,14.14295831]
[1734660743390,14.14295831,195.5,195.43,18.94030743]
[1734660744101,14.14295831,195.5,195.44,1.84571321]
[1734660744596,14.14295831,195.51,195.44,1.84571321]
[1734660744801,14.14295831,195.51,195.45,1.84571321]
[1734660744982,14.14295831,195.53,195.45,15.98867152]
[1734660745598,14.14295831,195.53,195.46,1.84571321]
[1734660745782,14.14295831,195.52,195.46,1.84571321]
[1734660746308,14.14295831,195.52,195.47,1.84571321]
[1734660746992,14.14295831,195.52,195.45,14.14295831]
[1734660747403,14.14295831,195.53,195.46,14.14295831]
[1734660747705,14.14295831,195.53,195.46,15.98715792]
[1734660747904,14.14295831,195.57,195.5,14.14295831]
[1734660748206,14.14295831,195.56,195.48,14.14295831]
[1734660748505,14.14295831,195.49,195.44,3.03150118]
[1734660748814,14.14295831,195.47,195.44,3.03150118]
[1734660748989,14.14295831,195.47,195.4,14.14295831]